{"text_format":"2","workbook":"xlsx","n_sheets":3,"sheets":["Concentrado enero 2026","ACUMULADO","Hoja1"],"not_rendered":{"charts":0,"images":0,"macros":0,"external_links":0,"defined_names":1,"comments":0,"pivot_tables":0},"unopened":[],"bounds":{"document_bytes":16777216,"sheet_cells":100000,"run_cost":"one","rows_first":2000,"rows_last":500,"rows_between":2000,"halvings":0,"cell_chars":16384,"cell_head_chars":4096},"cells_cut":0,"cells_raw":0,"read":"whole","date_system":"1900"}

{"sheet":"Concentrado enero 2026","index":0,"n_rows":131,"n_cols":61,"rows_kept":131,"cut":false,"hidden":false,"merged":[[1,1,3,1],[1,2,3,2],[1,3,1,5],[1,6,1,10],[1,11,3,11],[1,21,3,21],[1,22,3,22],[2,20,3,20],[1,12,3,12],[2,13,3,13],[2,14,3,14],[2,15,3,15],[2,16,2,17],[1,46,1,50],[1,51,3,51],[1,52,3,52],[2,3,3,3],[2,4,3,4],[2,5,3,5],[2,6,2,7],[2,8,2,9],[2,10,3,10],[1,33,1,35],[1,36,1,40],[1,41,3,41],[1,42,3,42],[1,43,1,45],[1,23,1,25],[1,26,1,30],[1,53,1,55],[1,56,1,60],[2,55,3,55],[2,56,2,57],[2,58,2,59],[2,60,3,60],[0,0,3,0],[0,1,0,10],[0,11,0,20],[0,21,0,30],[0,31,0,40],[1,31,3,31],[1,32,3,32],[2,30,3,30],[2,23,3,23],[2,24,3,24],[2,25,3,25],[2,26,2,27],[2,28,2,29],[2,18,2,19],[1,13,1,15],[1,16,1,20],[0,41,0,50],[0,51,0,60],[2,33,3,33],[2,34,3,34],[2,35,3,35],[2,36,2,37],[2,38,2,39],[2,40,3,40],[2,43,3,43],[2,44,3,44],[2,45,3,45],[2,46,2,47],[2,48,2,49],[2,50,3,50],[2,53,3,53],[2,54,3,54]]}
["Municipio","Enero",{"$nulls":9},"Febrero",{"$nulls":9},"Marzo",{"$nulls":9},"Abril",{"$nulls":9},"Mayo",{"$nulls":9},"Junio"]
[null,"Casos","Escuelas que reportan","Nivel",null,null,"Involucrados",{"$nulls":4},"Casos","Escuelas que reportan","Nivel",null,null,"Involucrados",{"$nulls":4},"Casos","Escuelas que reportan","Nivel",null,null,"Involucrados",{"$nulls":4},"Casos","Escuelas que reportan","Nivel",null,null,"Involucrados",{"$nulls":4},"Casos","Escuelas que reportan","Nivel",null,null,"Involucrados",{"$nulls":4},"Casos","Escuelas que reportan","Nivel",null,null,"Involucrados"]
[null,null,null,"Preescolar","Primaria","Secundaria","Agresor",null,"Agredido",null,"Total",null,null,"Preescolar","Primaria","Secundaria","Agresor",null,"Agredido",null,"Total",null,null,"Preescolar","Primaria","Secundaria","Agresor",null,"Agredido",null,"Total",null,null,"Preescolar","Primaria","Secundaria","Agresor",null,"Agredido",null,"Total",null,null,"Preescolar","Primaria","Secundaria","Agresor",null,"Agredido",null,"Total",null,null,"Preescolar","Primaria","Secundaria","Agresor",null,"Agredido",null,"Total"]
[{"$nulls":6},"Mujeres","Hombres","Mujeres","Hombres",{"$nulls":6},"Mujeres","Hombres","Mujeres","Hombres",{"$nulls":6},"Mujeres","Hombres","Mujeres","Hombres",{"$nulls":6},"Mujeres","Hombres","Mujeres","Hombres",{"$nulls":6},"Mujeres","Hombres","Mujeres","Hombres",{"$nulls":6},"Mujeres","Hombres","Mujeres","Hombres"]
["ACATIC"]
["ACATLÁN DE JUÁREZ"]
["AHUALULCO DE MERCADO"]
["AMACUECA"]
["AMATITÁN"]
["AMECA"]
["SAN JUANITO DE ESCOBEDO"]
["ARANDAS"]
["EL ARENAL"]
["ATEMAJAC DE BRIZUELA"]
["ATENGO"]
["ATENGUILLO"]
["ATOTONILCO EL ALTO"]
["ATOYAC"]
["AUTLÁN DE NAVARRO"]
["AYOTLÁN"]
["AYUTLA"]
["LA BARCA",{"$nulls":20},1,null,null,1,null,null,1,1]
["BOLAÑOS"]
["CABO CORRIENTES"]
["CASIMIRO CASTILLO"]
["CIHUATLÁN"]
["ZAPOTLÁN EL GRANDE"]
["COCULA"]
["COLOTLÁN"]
["CONCEPCIÓN DE BUENOS AIRES"]
["CUATITLÁN DE GARCÍA BARRAGÁN"]
["CUAUTLA"]
["CUQUÍO"]
["CHAPALA"]
["CHIMALTITÁN"]
["CHIQUILISTLÁN"]
["DEGOLLADO"]
["EJUTLA"]
["ENCARNACIÓN DE DÍAZ"]
["ETZATLÁN",{"$nulls":40},1,null,null,1,null,null,1,1]
["EL GRULLO"]
["GUACHINANGO"]
["GUADALAJARA",2,null,1,null,1,null,2,2,null,null,4,null,1,2,1,null,4,2,2,{"$f":"SUM(Q43:T43)","v":8},{"$nulls":10},3,null,null,3,null,null,5,null,3,null,6,null,null,3,3,1,5,2,4]
["HOSTOTIPAQUILLO"]
["HUEJÚCAR"]
["HUEJUQUILLA EL ALTO"]
["LA HUERTA"]
["IXTLAHUACÁN DE LOS MEMBRILLOS"]
["IXTLAHUACÁN DEL RÍO"]
["JALOSTOTITLÁN"]
["JAMAY"]
["JESÚS MARÍA"]
["JILOTLÁN DE LOS DOLORES"]
["JOCOTEPEC",{"$nulls":20},1,null,null,null,1,null,1,null,1]
["JUANACATLÁN"]
["JUCHITLÁN"]
["LAGOS DE MORENO"]
["EL LIMÓN"]
["MAGDALENA",1,null,null,null,1,1,null,1]
["SANTA MARÍA DEL ORO"]
["LA MANZANILLA DE LA PAZ"]
["MASCOTA"]
["MAZAMITLA"]
["MEXTICACÁN"]
["MEZQUITIC"]
["MIXTLÁN"]
["OCOTLÁN"]
["OJUELOS DE JALISCO",{"$nulls":30},1,null,null,null,1,null,1,1]
["PIHUAMO"]
["PONCITLÁN"]
["PUERTO VALLARTA",1,null,null,1,null,null,1,null,1,{"$nulls":11},1,null,1,null,null,null,1,null,1,{"$nulls":21},1,null,null,null,1,null,1,1,null,{"$f":"SUBTOTAL(9,BE71:BH71)","v":2}]
["VILLA PURIFICACIÓN"]
["QUITUPAN"]
["EL SALTO",{"$nulls":10},1,null,null,1,null,null,1,null,1,{"$f":"SUM(Q74:T74)","v":2}]
["SAN CRISTÓBAL DE LA BARRANCA"]
["SAN DIEGO DE ALEJANDRÍA"]
["SAN JUAN DE LOS LAGOS",{"$nulls":20},1,null,null,null,1,null,1,null,1]
["SAN JULIÁN"]
["SAN MARCOS"]
["SAN MARTÍN DE BOLAÑOS"]
["SAN MARTÍN DE HIDALGO"]
["SAN MIGUEL EL ALTO"]
["GÓMEZ FARÍAS"]
["SAN SEBASTIÁN DEL OESTE"]
["SANTA MARÍA DE LOS ÁNGELES"]
["SAYULA"]
["TALA",{"$nulls":40},1,null,null,null,1,null,1,null,1]
["TALPA DE ALLENDE"]
["TAMAZULA DE GORDIANO"]
["TAPALPA"]
["TECALITLÁN"]
["TECOLOTLÁN"]
["TECHALUTA DE MONTENEGRO"]
["TENAMAXTLÁN"]
["TEOCALTICHE"]
["TEOCUITATLÁN DE CORONA"]
["TEPATITLÁN DE MORELOS",1,{"$nulls":49},1,null,null,null,1,1,null,1,null,{"$f":"SUBTOTAL(9,BE97:BH97)","v":2}]
["TEQUILA"]
["TEUCHITLÁN"]
["TIZAPÁN EL ALTO"]
["TLAJOMULCO DE ZÚÑIGA",2,null,null,2,null,null,2,1,1,{"$nulls":21},1,null,1,null,null,null,1,1,null,null,3,null,null,2,1,null,6,1,5]
["TLAQUEPAQUE",{"$nulls":30},3,null,null,3,null,2,2,2,1,null,1,null,null,null,1,1,null,1]
["TOLIMÁN"]
["TOMATLÁN"]
["TONALÁ",{"$nulls":10},1,null,null,1,null,null,1,1,null,{"$f":"SUM(Q105:T105)","v":2},{"$nulls":20},1,null,null,null,1,1,1,null,1]
["TONAYA"]
["TONILA"]
["TOTATICHE"]
["TOTOTLÁN"]
["TUXCACUESCO"]
["TUXCUECA"]
["TUXPAN"]
["UNIÓN DE SAN ANTONIO"]
["UNIÓN DE TULA"]
["VALLE DE GUADALUPE"]
["VALLE DE JUÁREZ"]
["SAN GABRIEL"]
["VILLA CORONA"]
["VILLA GUERRERO"]
["VILLA HIDALGO"]
["CAÑADAS DE OBREGÓN"]
["YAHUALICA DE GONZÁLEZ GALLO"]
["ZACOALCO DE TORRES"]
["ZAPOPAN",1,null,1,null,null,null,1,1,null,null,2,null,null,null,2,null,2,1,1,{"$f":"SUM(Q124:T124)","v":4},3,null,null,1,2,1,2,1,2,null,9,null,1,6,2,4,10,6,3,null,7,null,null,6,1,5,3,5,2,null,2,null,null,1,1,null,2,1,1,{"$f":"SUM(BE124:BH124)","v":4}]
["ZAPOTILTIC"]
["ZAPOTITLÁN DE VADILLO"]
["ZAPOTLÁN DEL REY"]
["ZAPOTLANEJO"]
["SAN IGNACIO CERRO GORDO"]
["22 Mpios"]
["TOTAL DE CASOS",{"$f":"SUM(B5:B130)","v":8},0,2,3,2,1,6,5,2,{"$f":"SUM(G131:J131)","v":14},{"$f":"SUM(L43:L130)","v":8},null,{"$f":"SUM(N5:N130)","v":1},4,3,0,{"$f":"SUM(R5:R130)","v":8},4,4,{"$f":"SUM(Q131:T131)","v":16},7,null,{"$f":"SUM(X5:X130)","v":1},2,4,1,6,2,5,14,17,null,{"$f":"SUM(AH5:AH130)","v":2},12,3,6,19,10,7,42,{"$f":"SUM(AP5:AP130)","v":20},null,null,{"$f":"SUM(AS5:AS130)","v":12},8,8,17,10,13,null,{"$f":"SUM(AZ5:AZ130)","v":4},null,{"$f":"SUM(BB5:BB130)","v":0},1,3,1,3,3,1,{"$f":"SUM(BI5:BI130)","v":8}]

{"sheet":"ACUMULADO","index":1,"n_rows":18,"n_cols":11,"rows_kept":18,"cut":false,"hidden":false,"merged":[[3,10,4,10],[0,0,0,10],[1,0,1,10],[2,0,4,0],[2,1,4,1],[2,2,4,2],[2,3,2,5],[2,6,2,10],[3,3,4,3],[3,4,4,4],[3,5,4,5],[3,6,3,7],[3,8,3,9]]}
["INDICADOR: CASOS DE VIOLENCIA ENTRE IGUALES"]
[2026]
["Mes","Casos","Escuelas que reportan","Nivel",null,null,"Involucrados"]
[null,null,null,"Preescolar","Primaria","Secundaria","Agresor",null,"Agredido",null,"Total"]
[{"$nulls":6},"Mujeres","Hombres","Mujeres","Hombres"]
["Enero",7,null,2,3,2,1,6,5,2,14]
["Febrero",8,null,1,4,3,0,8,4,4,16]
["Marzo",7,null,1,2,4,1,6,2,5,14]
["Abril",17,null,2,12,3,6,19,10,7,42]
["Mayo",20,null,0,12,8,8,17,10,13,{"$f":"G10+H10+I10+J10","v":48}]
["Junio",4,null,0,1,3,1,3,3,1,{"$f":"G11+H11+I11+J11","v":8}]
["Julio"]
["Agosto"]
["Septiembre"]
["Octubre"]
["Noviembre"]
["Diciembre"]
["Total",{"$f":"SUM(B6:B17)","v":63},null,6,34,23,17,59,34,32,142]

{"sheet":"Hoja1","index":2,"n_rows":33,"n_cols":11,"rows_kept":33,"cut":false,"hidden":true,"merged":[[19,10,21,10],[20,6,20,7],[20,8,20,9],[1,10,3,10],[1,6,1,9],[2,6,2,7],[2,8,2,9],[19,6,19,9],[20,4,21,4],[20,5,21,5],[2,4,3,4],[2,5,3,5],[1,0,3,0],[1,1,3,1],[1,2,3,2],[1,3,1,5],[19,0,21,0],[19,1,21,1],[19,2,21,2],[19,3,19,5],[20,3,21,3],[2,3,3,3]]}
["JUNIO"]
["Municipio","Casos","Escuelas que reportan","Nivel",null,null,"Involucrados",null,null,null,"Total"]
[null,null,null,"Preescolar","Primaria","Secundaria","Agresor",null,"Agredido"]
[{"$nulls":6},"Mujeres","Hombres","Mujeres","Hombres"]
["CASIMIRO CASTILLO",1,1,null,null,1,3,null,1,null,4]
["COCULA",1,1,null,null,1,null,1,1,null,2]
["COLOTLÁN",1,1,null,1,null,null,1,null,1,2]
["GUADALAJARA",4,4,null,1,3,6,4,3,2,15]
["LAGOS DE MORENO",1,1,null,1,null,null,1,null,1,2]
["TEPATITLÁN DE MORELOS",2,2,null,2,null,null,2,1,1,4]
["TEQUILA",1,1,null,null,1,null,3,1,null,4]
["TLAJOMULCO DE ZÚÑIGA",2,2,null,1,1,null,1,3,null,4]
["TLAQUEPAQUE",2,2,null,1,1,null,2,null,2,4]
["TONALÁ",3,3,1,1,1,null,3,1,2,6]
["ZAPOTLANEJO",1,1,null,null,1,null,1,1,null,2]
["TOTAL DE CASOS",19,19,1,8,10,9,19,12,9,49]
[]
[]
["JULIO"]
["Municipio","Casos","Escuelas que reportan","Nivel",null,null,"Involucrados",null,null,null,"Total"]
[null,null,null,"Preescolar","Primaria","Secundaria","Agresor",null,"Agredido"]
[{"$nulls":6},"Mujeres","Hombres","Mujeres","Hombres"]
["CIHUATLÁN",2,2,null,1,1,null,2,7,6,15]
["ZAPOTLÁN EL GRANDE",1,1,1,null,null,null,1,null,1,2]
["GUADALAJARA",2,2,null,null,2,null,1,null,1,2]
["LAGOS DE MORENO",3,3,null,3,null,1,3,1,2,7]
["PUERTO VALLARTA",2,2,null,null,2,1,1,null,4,6]
["SAN JUAN DE LOS LAGOS",1,1,null,1,null,null,2,1,null,3]
["TEPATITLÁN DE MORELOS",3,3,null,3,null,null,3,null,3,6]
["TLAJOMULCO DE ZÚÑIGA",1,1,null,1,null,null,1,1,null,2]
["TONALÁ",3,3,null,2,1,1,5,7,null,13]
["ZAPOPAN",4,4,null,3,1,null,4,1,3,8]
["TOTAL DE CASOS",22,22,1,14,7,3,23,18,20,64]